[Event "Deutscher Jugend Online Cup 2020"]
[Site "Tornelo"]
[Date "2020.11.14"]
[Round "1.2"]
[White "Buchinger, Alexis"]
[Black "B_____, L___"]
[Result "0-1"]
[ECO "B44"]
[WhiteElo "1496"]
[BlackElo "1508"]
[Annotator "NA RC"]
[PlyCount "118"]
[EventDate "2020.11.13"]
[EventType "k.o."]
[SourceTitle "playchess.com"]
[Source "ChessBase"]
[SourceQuality "1"]
[TimeControl "600+3"]

1. e4 {[%emt 0:00:00]} c5 {[%emt 0:00:04]} 2. Nf3 {[%emt 0:00:11]} Nc6 {[%emt 0:00:03]} 3. d4 {[%emt 0:00:06]} cxd4 {[%emt 0:00:01]} 4. Nxd4 {[%emt 0:00:03]} e6 {[%emt 0:00:03]} 5. Nb5 {[%emt 0:00:20]} d6 {[%emt 0:00:06]} 6. c4 {[%emt 0:00:40]} Nf6 {[%emt 0:00:11]} 7. N1c3 {[%emt 0:00:16]} Be7 {[%emt 0:00:15]} 8. Bf4 {[%emt 0:00:25]} e5 {[%emt 0:00:08]} 9. Bg5 {[%emt 0:00:04]} a6 {[%emt 0:00:04]} 10. Bxf6 {[%emt 0:00:28]} gxf6 {[%emt 0:00:13]} 11. Na3 {[%emt 0:00:05]} Be6 {[%emt 0:00:12]} 12. Be2 {[%emt 0:00:20]} Rc8 {[%emt 0:00:08]} 13. Nd5 {[%emt 0:00:07]} Nd4 {[%emt 0:00:17]} 14. b3 {[%emt 0:00:36]} Qa5+ {[%emt 0:00:09]} 15. b4 {[%emt 0:00:15]} Qxa3 {[%emt 0:00:16]} 16. Nxe7 {[%emt 0:00:22]} Qxb4+ {[%emt 0:00:27]} 17. Kf1 {[%emt 0:00:04]} Kxe7 {[%emt 0:00:03]} 18. Rb1 {[%emt 0:00:02]} Qc5 {[%emt 0:00:22]} 19. Rxb7+ {[%emt 0:00:04]} Rc7 {[%emt 0:00:06]} 20. Rxc7+ {[%emt 0:00:49]} Qxc7 {[%emt 0:00:04]} 21. Qc1 {[%emt 0:00:29]} Nxe2 {[%emt 0:00:03]} 22. Kxe2 {[%emt 0:00:02]} Qxc4+ {[%emt 0:00:03]} 23. Qxc4 {[%emt 0:00:36]} Bxc4+ {[%emt 0:00:02]} 24. Kd2 {[%emt 0:00:07]} Bxa2 {[%emt 0:00:15]} 25. Ra1 {[%emt 0:00:09]} Bc4 {[%emt 0:00:03]} 26. Rc1 {[%emt 0:00:02]} Bb5 {[%emt 0:02:27]} 27. Rc7+ {[%emt 0:00:05]} Kf8 {[%emt 0:00:55]} 28. h4 {[%emt 0:00:27]} Kg7 {[%emt 0:00:14]} 29. Ke3 {[%emt 0:00:36]} Ra8 {[%emt 0:00:08]} 30. Kd2 {[%emt 0:00:38]} a5 {[%emt 0:00:16]} 31. Kc1 {[%emt 0:00:32]} a4 {[%emt 0:00:19]} 32. Kb2 {[%emt 0:00:05]} a3+ {[%emt 0:00:05]} 33. Ka2 {[%emt 0:00:02]} Bd3 {[%emt 0:00:15]} 34. f3 {[%emt 0:00:06]} Bf1 {[%emt 0:00:03]} 35. g4 {[%emt 0:00:18]} Be2 {[%emt 0:00:40]} 36. Rc3 {[%emt 0:00:06]} Bb5 {[%emt 0:00:23]} 37. h5 {[%emt 0:00:26]} Kh6 {[%emt 0:00:57]} 38. Rc2 {[%emt 0:00:16]} Bd7 {[%emt 0:00:08]} 39. Rd2 {[%emt 0:00:34]} Ra6 {[%emt 0:00:11]} 40. Ka1 {[%emt 0:00:08]} Be6 {[%emt 0:00:03]} 41. Re2 {[%emt 0:00:10]} a2 {[%emt 0:00:04]} 42. Rb2 {[%emt 0:00:03]} Rc6 {[%emt 0:00:04]} 43. Rxa2 {[%emt 0:00:16]} Bxa2 {[%emt 0:00:02]} 44. Kxa2 {[%emt 0:00:01]} Rc3 {[%emt 0:00:03]} 45. Kb2 {[%emt 0:00:03]} Rxf3 {[%emt 0:00:02]} 46. Kc2 {[%emt 0:00:01]} Kg5 {[%emt 0:00:03]} 47. Kd2 {[%emt 0:00:02]} Kxg4 {[%emt 0:00:02]} 48. Ke2 {[%emt 0:00:06]} Ra3 {[%emt 0:00:04]} 49. Kd2 {[%emt 0:00:02]} Kxh5 {[%emt 0:00:02]} 50. Ke2 {[%emt 0:00:02]} Kg4 {[%emt 0:00:02]} 51. Kd2 {[%emt 0:00:02]} Kf4 {[%emt 0:00:01]} 52. Ke2 {[%emt 0:00:01]} Kxe4 {[%emt 0:00:02]} 53. Kd2 {[%emt 0:00:02]} Rg3 {[%emt 0:00:08]} 54. Ke2 {[%emt 0:00:01]} h5 {[%emt 0:00:02]} 55. Kf2 {[%emt 0:00:02]} Kf4 {[%emt 0:00:07]} 56. Ke2 {[%emt 0:00:02]} h4 {[%emt 0:00:02]} 57. Kf2 {[%emt 0:00:01]} h3 {[%emt 0:00:02]} 58. Ke2 {[%emt 0:00:01]} h2 {[%emt 0:00:02]} 59. Kf2 {[%emt 0:00:02]} h1=Q {[%emt 0:00:07]} 0-1

[Event "Deutscher Jugend Online Cup 2020"]
[Site "Tornelo"]
[Date "2020.11.14"]
[Round "1.2"]
[White "Kutz, Ida"]
[Black "Richter, Johanna"]
[Result "1-0"]
[ECO "A24"]
[WhiteElo "1269"]
[BlackElo "1178"]
[Annotator "NA RC"]
[PlyCount "61"]
[EventDate "2020.11.13"]
[EventType "k.o."]
[SourceTitle "playchess.com"]
[Source "ChessBase"]
[SourceQuality "1"]
[TimeControl "600+3"]

1. c4 {[%emt 0:00:00]} Nf6 {[%emt 0:00:06]} 2. Nc3 {[%emt 0:00:09]} g6 {[%emt 0:00:03]} 3. Nf3 {[%emt 0:00:07]} Bg7 {[%emt 0:00:07]} 4. g3 {[%emt 0:00:02]} O-O {[%emt 0:00:10]} 5. Bg2 {[%emt 0:00:03]} d6 {[%emt 0:00:03]} 6. O-O {[%emt 0:00:04]} e5 {[%emt 0:00:04]} 7. d4 {[%emt 0:00:33]} Nfd7 {[%emt 0:00:47]} 8. Bg5 {[%emt 0:00:23]} Qe8 {[%emt 0:00:49]} 9. Nd5 {[%emt 0:00:50]} Na6 {[%emt 0:00:28]} 10. b4 {[%emt 0:00:21]} c6 {[%emt 0:00:16]} 11. Ne7+ {[%emt 0:00:40]} Kh8 {[%emt 0:00:24]} 12. Rb1 {[%emt 0:01:14]} f6 {[%emt 0:00:25]} 13. Nxc8 {[%emt 0:00:12]} Rxc8 {[%emt 0:00:46]} 14. Bc1 {[%emt 0:00:32]} f5 {[%emt 0:00:37]} 15. dxe5 {[%emt 0:01:15]} dxe5 {[%emt 0:00:11]} 16. Ba3 {[%emt 0:00:05]} b5 {[%emt 0:00:42]} 17. cxb5 {[%emt 0:00:21]} cxb5 {[%emt 0:00:05]} 18. Ng5 {[%emt 0:00:33]} Bf6 {[%emt 0:00:38]} 19. h4 {[%emt 0:00:17]} f4 {[%emt 0:00:18]} 20. Bb7 {[%emt 0:00:07]} Rd8 {[%emt 0:00:32]} 21. Qb3 {[%emt 0:00:26]} Bxg5 {[%emt 0:01:24]} 22. hxg5 {[%emt 0:00:17]} Nc7 {[%emt 0:00:19]} 23. gxf4 {[%emt 0:00:08]} Rxf4 {[%emt 0:00:08]} 24. e3 {[%emt 0:00:15]} Rg4+ {[%emt 0:00:05]} 25. Bg2 {[%emt 0:00:02]} Rxg5 {[%emt 0:00:15]} 26. f4 {[%emt 0:00:33]} Rg4 {[%emt 0:01:01]} 27. Qd1 {[%emt 0:00:38]} Qe6 {[%emt 0:00:24]} 28. fxe5 {[%emt 0:00:21]} Nxe5 {[%emt 0:00:04]} 29. Qxd8+ {[%emt 0:00:06]} Qe8 {[%emt 0:00:05]} 30. Rf8+ {[%emt 0:00:10]} Qxf8 {[%emt 0:00:03]} 31. Qxf8# {[%emt 0:00:02]} 1-0

[Event "Deutscher Jugend Online Cup 2020"]
[Site "Tornelo"]
[Date "2020.11.14"]
[Round "1.3"]
[White "Voigt, Anastasia"]
[Black "Zhou, Lepu Coco"]
[Result "0-1"]
[ECO "C55"]
[WhiteElo "1738"]
[BlackElo "1882"]
[Annotator "NA RC"]
[PlyCount "70"]
[EventDate "2020.11.13"]
[EventType "k.o."]
[SourceTitle "playchess.com"]
[Source "ChessBase"]
[SourceQuality "1"]
[TimeControl "600+3"]

1. e4 {[%emt 0:00:00]} e5 {[%emt 0:00:07]} 2. Nf3 {[%emt 0:00:04]} Nc6 {[%emt 0:00:02]} 3. Bc4 {[%emt 0:00:03]} Nf6 {[%emt 0:00:05]} 4. d3 {[%emt 0:00:03]} Be7 {[%emt 0:00:04]} 5. O-O {[%emt 0:00:02]} O-O {[%emt 0:00:05]} 6. Re1 {[%emt 0:00:11]} d6 {[%emt 0:00:09]} 7. a4 {[%emt 0:00:06]} Be6 {[%emt 0:00:06]} 8. a5 {[%emt 0:00:19]} a6 {[%emt 0:00:34]} 9. h3 {[%emt 0:01:01]} Qd7 {[%emt 0:01:08]} 10. Ng5 {[%emt 0:01:11]} d5 {[%emt 0:01:25]} 11. Nxe6 {[%emt 0:01:41]} ({White should try} 11. Bb3 $11) 11... fxe6 {[%emt 0:00:05]} 12. exd5 {[%emt 0:00:12]} exd5 {[%emt 0:00:03]} 13. Bb3 {[%emt 0:00:12]} Kh8 {[%emt 0:01:04]} 14. c3 {[%emt 0:00:53]} Bc5 {[%emt 0:00:36]} 15. Be3 {[%emt 0:01:06]} d4 {[%emt 0:00:36]} 16. cxd4 $1 {[%emt 0:00:12]} Nxd4 {[%emt 0:01:06]} 17. Bc4 {[%emt 0:00:39]} Nd5 {[%emt 0:00:56]} 18. Nc3 {[%emt 0:00:50]} (18. Bxd5 $11 {was the only way to keep the balance.} Qxd5 19. Ra4) 18... Nxe3 {[%emt 0:00:20]} 19. fxe3 {[%emt 0:00:03]} Nf5 {[%emt 0:00:50] Discovered Attack} 20. Nd5 $19 {[%emt 0:00:22]} (20. Qd2 $17 {keeps fighting.}) 20... c6 {[%emt 0:00:44]} 21. Nb6 {[%emt 0:00:03]} Bxb6 {[%emt 0:00:02]} 22. axb6 {[%emt 0:00:03]} Qd8 {[%emt 0:00:18]} 23. Qb3 {[%emt 0:00:13]} Qg5 {[%emt 0:00:02]} 24. e4 {[%emt 0:00:58]} Ne3 {[%emt 0:00:31]} 25. Re2 {[%emt 0:00:12]} Nxc4 {[%emt 0:00:04]} 26. dxc4 {[%emt 0:00:03]} Rad8 {[%emt 0:00:02]} 27. Rae1 {[%emt 0:00:05]} Rd2 {[%emt 0:00:03]} 28. Rxd2 {[%emt 0:00:05]} Qxd2 {[%emt 0:00:02]} 29. Rf1 {[%emt 0:00:07]} Qd4+ {[%emt 0:00:04]} 30. Kh2 {[%emt 0:00:12]} Rxf1 {[%emt 0:00:02]} 31. Qc2 {[%emt 0:00:03]} Qg1+ {[%emt 0:00:06]} 32. Kg3 {[%emt 0:00:04]} Qe3+ {[%emt 0:00:01]} 33. Kh2 {[%emt 0:00:04]} Qf4+ {[%emt 0:00:02]} 34. g3 {[%emt 0:00:05]} Rf2+ {[%emt 0:00:01]} 35. Qxf2 {[%emt 0:00:06]} Qxf2+ {[%emt 0:00:01]} 0-1

[Event "Deutscher Jugend Online Cup 2020"]
[Site "Tornelo"]
[Date "2020.11.14"]
[Round "1.3"]
[White "Marcziter, Alex"]
[Black "N_____, L_____"]
[Result "1-0"]
[ECO "C59"]
[WhiteElo "1401"]
[BlackElo "1714"]
[Annotator "NA RC"]
[PlyCount "95"]
[EventDate "2020.11.13"]
[EventType "k.o."]
[SourceTitle "playchess.com"]
[Source "ChessBase"]
[SourceQuality "1"]
[TimeControl "600+3"]

1. e4 {[%emt 0:00:00]} e5 {[%emt 0:00:07]} 2. Nf3 {[%emt 0:00:05]} Nc6 {[%emt 0:00:02]} 3. Bc4 {[%emt 0:00:03]} Nf6 {[%emt 0:00:03]} 4. Ng5 {[%emt 0:00:04]} d5 {[%emt 0:00:02]} 5. exd5 {[%emt 0:00:01]} Na5 {[%emt 0:00:01]} 6. Bb5+ {[%emt 0:00:02]} c6 {[%emt 0:00:01]} 7. dxc6 {[%emt 0:00:02]} bxc6 {[%emt 0:00:02]} 8. Be2 {[%emt 0:00:02]} h6 {[%emt 0:00:02]} 9. Nf3 {[%emt 0:00:03]} e4 {[%emt 0:00:02]} 10. Ne5 {[%emt 0:00:02]} Bc5 {[%emt 0:00:01]} 11. O-O {[%emt 0:00:09]} O-O {[%emt 0:00:09]} 12. Ng4 {[%emt 0:01:35]} Nxg4 {[%emt 0:00:14]} 13. Bxg4 {[%emt 0:00:03]} Bxg4 {[%emt 0:00:02]} 14. Qxg4 {[%emt 0:00:03]} f5 {[%emt 0:00:08]} 15. Qe2 {[%emt 0:01:12]} Qe7 {[%emt 0:04:56]} 16. Nc3 {[%emt 0:01:03]} Rae8 {[%emt 0:00:34]} 17. d3 {[%emt 0:01:08]} exd3 {[%emt 0:00:24]} 18. Qxd3 {[%emt 0:00:11]} f4 {[%emt 0:00:13]} 19. Qf3 {[%emt 0:01:00]} g5 {[%emt 0:01:36]} 20. Bd2 {[%emt 0:00:49]} Qd7 {[%emt 0:00:50]} 21. Rad1 {[%emt 0:01:25]} g4 {[%emt 0:00:15]} 22. Bc1 {[%emt 0:01:00]} Qg7 {[%emt 0:00:46]} 23. Qd3 {[%emt 0:00:17]} g3 {[%emt 0:00:06]} 24. b3 {[%emt 0:00:35]} gxf2+ {[%emt 0:00:07]} 25. Kh1 {[%emt 0:00:03]} Kh8 {[%emt 0:00:15]} 26. Bb2 {[%emt 0:00:03]} Be7 {[%emt 0:00:09]} 27. Rb1 {[%emt 0:00:07]} Bf6 {[%emt 0:00:02]} 28. Nd1 {[%emt 0:00:04]} Bxb2 {[%emt 0:00:04]} 29. Nxb2 {[%emt 0:00:01]} Rg8 {[%emt 0:00:01]} 30. Rxf2 {[%emt 0:00:03]} Qe7 {[%emt 0:00:03]} 31. h3 {[%emt 0:00:03]} Rg7 {[%emt 0:00:03]} 32. Rbf1 {[%emt 0:00:04]} Reg8 {[%emt 0:00:02]} 33. Nc4 {[%emt 0:00:03]} Nxc4 {[%emt 0:00:02]} 34. Qxc4 {[%emt 0:00:01]} Qg5 {[%emt 0:00:06]} 35. Qxf4 {[%emt 0:00:04]} Qxf4 {[%emt 0:00:02]} 36. Rxf4 {[%emt 0:00:02]} Rxg2 {[%emt 0:00:01]} 37. Rf8 {[%emt 0:00:03]} Rxf8 {[%emt 0:00:03]} 38. Rxf8+ {[%emt 0:00:02]} Kg7 {[%emt 0:00:01]} 39. Kxg2 {[%emt 0:00:01]} Kxf8 {[%emt 0:00:02]} 40. c4 {[%emt 0:00:03]} Kf7 {[%emt 0:00:01]} 41. Kf3 {[%emt 0:00:01]} Ke6 {[%emt 0:00:02]} 42. Ke4 {[%emt 0:00:02]} h5 {[%emt 0:00:02]} 43. b4 {[%emt 0:00:02]} a6 {[%emt 0:00:01]} 44. a4 {[%emt 0:00:01]} Kf6 {[%emt 0:00:04]} 45. Kd4 {[%emt 0:00:03]} Ke6 {[%emt 0:00:02]} 46. Kc5 {[%emt 0:00:03]} Kd7 {[%emt 0:00:02]} 47. b5 {[%emt 0:00:06]} a5 {[%emt 0:00:02]} 48. b6 {[%emt 0:00:03]} 1-0

[Event "Deutscher Jugend Online Cup 2020"]
[Site "Tornelo"]
[Date "2020.11.14"]
[Round "1.3"]
[White "Woiteck, Sophia"]
[Black "Trunz, Tamila"]
[Result "0-1"]
[ECO "D02"]
[WhiteElo "1285"]
[BlackElo "1379"]
[Annotator "NA RC"]
[PlyCount "158"]
[EventDate "2020.11.13"]
[EventType "k.o."]
[SourceTitle "playchess.com"]
[Source "ChessBase"]
[SourceQuality "1"]
[TimeControl "600+3"]

1. d4 {[%emt 0:00:00]} d5 {[%emt 0:00:03]} 2. Bf4 {[%emt 0:00:04]} Bf5 {[%emt 0:00:06]} 3. Nf3 {[%emt 0:00:04]} Nf6 {[%emt 0:00:05]} 4. e3 {[%emt 0:00:03]} e6 {[%emt 0:00:05]} 5. Bd3 {[%emt 0:00:04]} Bxd3 {[%emt 0:00:05]} 6. Qxd3 {[%emt 0:00:03]} Nbd7 {[%emt 0:00:03]} 7. Nbd2 {[%emt 0:00:04]} c6 {[%emt 0:00:08]} 8. c3 {[%emt 0:00:02]} Be7 {[%emt 0:00:05]} 9. h3 {[%emt 0:00:13]} O-O {[%emt 0:00:03]} 10. O-O {[%emt 0:00:03]} c5 {[%emt 0:00:05]} 11. Rfe1 {[%emt 0:00:24]} Rc8 {[%emt 0:00:06]} 12. b3 {[%emt 0:00:06]} b6 {[%emt 0:00:09]} 13. Rac1 {[%emt 0:00:24]} cxd4 {[%emt 0:00:07]} 14. exd4 {[%emt 0:00:03]} Nh5 {[%emt 0:00:16]} 15. Bh2 {[%emt 0:00:05]} Ndf6 {[%emt 0:00:06]} 16. Ne5 {[%emt 0:00:05]} Bd6 {[%emt 0:00:16]} 17. Qf3 {[%emt 0:00:15]} g6 {[%emt 0:00:53]} 18. Qe3 {[%emt 0:00:31]} Ng7 {[%emt 0:00:07]} 19. g4 {[%emt 0:00:38]} Nd7 {[%emt 0:00:21]} 20. Qh6 {[%emt 0:00:42]} Qc7 {[%emt 0:00:19]} 21. Ndf3 {[%emt 0:00:06]} f6 {[%emt 0:00:09]} 22. Nxd7 {[%emt 0:00:21]} Bxh2+ {[%emt 0:00:09]} 23. Nxh2 {[%emt 0:00:03]} Qxd7 {[%emt 0:00:03]} 24. Qf4 {[%emt 0:00:11]} Rc6 {[%emt 0:00:07]} 25. Nf3 {[%emt 0:00:10]} Qc8 {[%emt 0:00:13]} 26. Re3 {[%emt 0:00:15]} a6 {[%emt 0:00:14]} 27. h4 {[%emt 0:00:06]} e5 {[%emt 0:00:21]} 28. dxe5 {[%emt 0:00:16]} fxe5 {[%emt 0:00:04]} 29. Qg5 {[%emt 0:00:18]} e4 {[%emt 0:00:09]} 30. Qxd5+ {[%emt 0:00:05]} Ne6 {[%emt 0:00:17]} 31. Nd4 {[%emt 0:00:04]} Rd8 {[%emt 0:00:21]} 32. Qxc6 {[%emt 0:00:04]} Nxd4 {[%emt 0:00:23]} 33. Qxc8 {[%emt 0:00:12]} Rxc8 {[%emt 0:00:04]} 34. Rxe4 {[%emt 0:00:06]} Nf3+ {[%emt 0:00:05]} 35. Kg2 {[%emt 0:00:03]} Nxh4+ {[%emt 0:00:06]} 36. Kg3 {[%emt 0:00:02]} g5 {[%emt 0:00:06]} 37. Re5 {[%emt 0:00:02]} h6 {[%emt 0:00:04]} 38. Re6 {[%emt 0:00:06]} Kg7 {[%emt 0:00:22]} 39. Rxb6 {[%emt 0:00:02]} Rf8 {[%emt 0:00:05]} 40. Rc2 {[%emt 0:00:11]} Rf3+ {[%emt 0:00:30]} 41. Kh2 {[%emt 0:00:03]} Rf4 {[%emt 0:00:13]} 42. Kh3 {[%emt 0:00:17]} Rf3+ {[%emt 0:00:10]} 43. Kh2 {[%emt 0:00:02]} Rf4 {[%emt 0:00:07]} 44. Rd2 {[%emt 0:00:03]} Nf3+ {[%emt 0:00:04]} 45. Kg2 {[%emt 0:00:18]} Nxd2 {[%emt 0:00:02]} 46. Rd6 {[%emt 0:00:03]} Nb1 {[%emt 0:00:07]} 47. Rd1 {[%emt 0:00:04]} Nxc3 {[%emt 0:00:03]} 48. Rd6 {[%emt 0:00:04]} Rxg4+ {[%emt 0:00:07]} 49. Kf3 {[%emt 0:00:05]} Rf4+ {[%emt 0:00:03]} 50. Ke3 {[%emt 0:00:03]} Nxa2 {[%emt 0:00:03]} 51. Rxa6 {[%emt 0:00:04]} Nb4 {[%emt 0:00:03]} 52. Ra4 {[%emt 0:00:03]} Nc2+ {[%emt 0:00:06]} 53. Kd3 {[%emt 0:00:03]} Rxf2 {[%emt 0:00:06]} 54. Rc4 {[%emt 0:00:08]} Ne1+ {[%emt 0:00:09]} 55. Ke3 {[%emt 0:00:04]} Rc2 {[%emt 0:00:03]} 56. Rxc2 {[%emt 0:00:04]} Nxc2+ {[%emt 0:00:02]} 57. Kd3 {[%emt 0:00:02]} Nb4+ {[%emt 0:00:07]} 58. Kc4 {[%emt 0:00:02]} Nc6 {[%emt 0:00:02]} 59. Kc5 {[%emt 0:00:01]} Na5 {[%emt 0:00:17]} 60. b4 {[%emt 0:00:03]} Nb7+ {[%emt 0:00:06]} 61. Kc6 {[%emt 0:00:02]} Nd8+ {[%emt 0:00:05]} 62. Kc7 {[%emt 0:00:01]} Ne6+ {[%emt 0:00:03]} 63. Kc6 {[%emt 0:00:05]} Kf6 {[%emt 0:00:06]} 64. b5 {[%emt 0:00:02]} Nd4+ {[%emt 0:00:03]} 65. Kc5 {[%emt 0:00:07]} Nxb5 {[%emt 0:00:02]} 66. Kxb5 {[%emt 0:00:01]} g4 {[%emt 0:00:07]} 67. Kc4 {[%emt 0:00:02]} g3 {[%emt 0:00:03]} 68. Kd5 {[%emt 0:00:02]} g2 {[%emt 0:00:03]} 69. Ke4 {[%emt 0:00:02]} g1=Q {[%emt 0:00:03]} 70. Kd5 {[%emt 0:00:03]} Qe1 {[%emt 0:00:04]} 71. Kc4 {[%emt 0:00:02]} Qd1 {[%emt 0:00:03]} 72. Kc5 {[%emt 0:00:02]} Ke5 {[%emt 0:00:03]} 73. Kc6 {[%emt 0:00:01]} Qd6+ {[%emt 0:00:04]} 74. Kb5 {[%emt 0:00:01]} Qc7 {[%emt 0:00:02]} 75. Kb4 {[%emt 0:00:04]} Kd4 {[%emt 0:00:02]} 76. Kb3 {[%emt 0:00:03]} Qc3+ {[%emt 0:00:04]} 77. Ka4 {[%emt 0:00:01]} Qb2 {[%emt 0:00:02]} 78. Ka5 {[%emt 0:00:02]} Kc5 {[%emt 0:00:03]} 79. Ka6 {[%emt 0:00:01]} Qb6# {[%emt 0:00:03]} 0-1

[Event "Deutscher Jugend Online Cup 2020"]
[Site "Tornelo"]
[Date "2020.11.14"]
[Round "1.3"]
[White "Lorenz, Veronika"]
[Black "Trunz, Michelle"]
[Result "0-1"]
[ECO "B90"]
[WhiteElo "1261"]
[BlackElo "1673"]
[Annotator "NA RC"]
[PlyCount "74"]
[EventDate "2020.11.13"]
[EventType "k.o."]
[SourceTitle "playchess.com"]
[Source "ChessBase"]
[SourceQuality "1"]
[TimeControl "600+3"]

1. e4 {[%emt 0:00:00]} c5 {[%emt 0:00:04]} 2. Nf3 {[%emt 0:00:12]} d6 {[%emt 0:00:02]} 3. d4 {[%emt 0:00:02]} cxd4 {[%emt 0:00:01]} 4. Nxd4 {[%emt 0:00:03]} Nf6 {[%emt 0:00:02]} 5. Nc3 {[%emt 0:00:02]} a6 {[%emt 0:00:01]} 6. Be3 {[%emt 0:00:04]} e5 {[%emt 0:00:18]} 7. Nb3 {[%emt 0:00:06]} Be6 {[%emt 0:00:03]} 8. Qd2 {[%emt 0:00:10]} Be7 {[%emt 0:00:10]} 9. O-O-O {[%emt 0:00:26]} Qc7 {[%emt 0:00:07]} 10. Nd5 {[%emt 0:00:09]} Bxd5 {[%emt 0:00:39]} 11. exd5 {[%emt 0:00:05]} Nbd7 {[%emt 0:00:02]} 12. Kb1 {[%emt 0:00:06]} O-O {[%emt 0:00:08]} 13. Be2 {[%emt 0:00:33]} Rfc8 {[%emt 0:00:27]} 14. g4 {[%emt 0:00:39]} a5 {[%emt 0:00:22]} 15. g5 {[%emt 0:00:22]} Ne4 {[%emt 0:00:09]} 16. Qd3 {[%emt 0:01:22]} Nec5 {[%emt 0:00:21]} 17. Nxc5 {[%emt 0:00:34]} Nxc5 {[%emt 0:00:04]} 18. Bxc5 {[%emt 0:00:05]} Qxc5 {[%emt 0:00:02]} 19. h4 {[%emt 0:01:16]} a4 {[%emt 0:00:38]} 20. Rhg1 {[%emt 0:01:08]} g6 {[%emt 0:00:25]} 21. h5 {[%emt 0:00:23]} a3 {[%emt 0:00:52]} 22. b3 {[%emt 0:00:26]} Kg7 {[%emt 0:01:43]} 23. Rg2 {[%emt 0:01:01]} b5 {[%emt 0:00:28]} 24. Rh1 {[%emt 0:00:05]} Qc3 {[%emt 0:00:56]} 25. Qxc3 {[%emt 0:00:25]} Rxc3 {[%emt 0:00:03]} 26. Bxb5 {[%emt 0:00:12]} Rc5 {[%emt 0:00:29]} 27. Bd3 {[%emt 0:00:27]} Rh8 {[%emt 0:00:27]} 28. Bc4 {[%emt 0:00:05]} Rb8 {[%emt 0:00:23]} 29. hxg6 {[%emt 0:00:07]} Rxc4 {[%emt 0:01:19]} 30. Rxh7+ {[%emt 0:00:32]} Kxg6 {[%emt 0:00:06]} 31. Rgh2 {[%emt 0:00:03]} Bxg5 {[%emt 0:00:10]} 32. R7h5 {[%emt 0:00:14]} f6 {[%emt 0:00:07]} 33. R5h3 {[%emt 0:00:02]} Rcc8 {[%emt 0:00:04]} 34. Rh7 {[%emt 0:00:04]} Rb5 {[%emt 0:00:05]} 35. c4 {[%emt 0:00:12]} Rb6 {[%emt 0:00:03]} 36. Rd7 {[%emt 0:00:02]} Rxc4 {[%emt 0:00:05]} 37. Rhh7 {[%emt 0:00:03]} Rc1# {[%emt 0:00:03]} 0-1

[Event "Deutscher Jugend Online Cup 2020"]
[Site "Tornelo"]
[Date "2020.11.14"]
[Round "2.1"]
[White "Becker, Linda"]
[Black "Wagner, Margarethe"]
[Result "1-0"]
[ECO "B53"]
[WhiteElo "1763"]
[BlackElo "1841"]
[Annotator "NA RC"]
[PlyCount "137"]
[EventDate "2020.11.13"]
[EventType "k.o."]
[SourceTitle "playchess.com"]
[Source "ChessBase"]
[SourceQuality "1"]
[TimeControl "600+3"]

1. e4 {[%emt 0:00:00]} c5 {[%emt 0:00:02]} 2. Nf3 {[%emt 0:00:06]} d6 {[%emt 0:00:03]} 3. d4 {[%emt 0:00:03]} cxd4 {[%emt 0:00:02]} 4. Qxd4 {[%emt 0:00:02]} Nc6 {[%emt 0:00:03]} 5. Bb5 {[%emt 0:00:02]} Bd7 {[%emt 0:00:07]} 6. Bxc6 {[%emt 0:00:03]} Bxc6 {[%emt 0:00:02]} 7. c4 {[%emt 0:00:01]} Nf6 {[%emt 0:00:04]} 8. Nc3 {[%emt 0:00:03]} e5 {[%emt 0:00:23]} 9. Qd3 {[%emt 0:00:14]} Be7 {[%emt 0:00:07]} 10. O-O {[%emt 0:00:02]} O-O {[%emt 0:00:03]} 11. b3 {[%emt 0:00:04]} a6 {[%emt 0:00:11]} (11... Nxe4 $5 12. Nxe4 f5 $11) 12. Bb2 {[%emt 0:00:07]} Rb8 {[%emt 0:00:11]} 13. a4 {[%emt 0:00:16]} Nh5 {[%emt 0:00:42]} 14. Rad1 {[%emt 0:00:34]} Nf4 {[%emt 0:00:09]} 15. Qc2 {[%emt 0:00:10]} Qc7 {[%emt 0:00:13]} 16. Ba3 {[%emt 0:00:17]} b5 {[%emt 0:00:26]} 17. axb5 {[%emt 0:00:26]} axb5 {[%emt 0:00:05]} 18. Nd5 {[%emt 0:00:33]} (18. Bc1 $11) 18... Bxd5 {[%emt 0:00:12] Pin} 19. exd5 {[%emt 0:00:09]} bxc4 {[%emt 0:00:23]} 20. bxc4 {[%emt 0:00:09]} Rfc8 {[%emt 0:00:17]} 21. Rb1 {[%emt 0:00:21]} Ra8 {[%emt 0:00:22]} 22. Qb3 {[%emt 0:00:42]} Qxc4 {[%emt 0:00:22]} 23. Qb7 {[%emt 0:00:27]} (23. Qxc4 $17 Rxc4 {[#]} 24. Nxe5 $1 {[%mdl 512]} dxe5 25. Bxe7) 23... Rxa3 {[%emt 0:00:56]} ({Don't do} 23... Qxd5 24. Qxd5 Nxd5 25. Rb3) 24. Qxe7 {[%emt 0:00:28]} Ne2+ {[%emt 0:00:33]} 25. Kh1 {[%emt 0:00:06]} Rxf3 {[%emt 0:00:29]} 26. gxf3 {[%emt 0:00:11] [#]} Qxd5 {[%emt 0:00:03]} (26... Qc3 $1 $19 {[%cal Rc3f3] is more deadly.} 27. Qg5 Nf4) 27. Qb7 {[%emt 0:00:15] [#]} Qc4 {[%emt 0:00:41]} (27... Qe6 $1 $17 28. Rfd1 Re8) 28. Rfe1 {[%emt 0:00:19]} Rf8 {[%emt 0:00:40]} 29. Qe4 {[%emt 0:00:12]} Qxe4 {[%emt 0:00:06]} 30. fxe4 {[%emt 0:00:01]} Nd4 {[%emt 0:00:07]} 31. Rb6 {[%emt 0:00:09]} Rd8 {[%emt 0:00:03]} 32. Reb1 {[%emt 0:00:11]} Kf8 {[%emt 0:00:07]} 33. Rb8 {[%emt 0:00:03]} Rxb8 {[%emt 0:00:03]} 34. Rxb8+ {[%emt 0:00:03]} Ke7 {[%emt 0:00:02]} 35. Rb7+ {[%emt 0:00:08]} Ke6 {[%emt 0:00:02]} 36. Kg2 {[%emt 0:00:03]} Ne2 {[%emt 0:00:28]} 37. Kf3 {[%emt 0:00:08]} Nf4 {[%emt 0:00:03]} 38. Rb8 {[%emt 0:00:08]} g6 {[%emt 0:00:16]} 39. Ke3 {[%emt 0:00:11]} f5 {[%emt 0:00:05]} 40. exf5+ {[%emt 0:00:08]} gxf5 {[%emt 0:00:03]} 41. Rh8 {[%emt 0:00:06]} h5 {[%emt 0:00:02]} 42. Rg8 {[%emt 0:00:12]} d5 {[%emt 0:00:14]} 43. f3 {[%emt 0:00:11]} d4+ {[%emt 0:00:04]} 44. Kd2 {[%emt 0:00:05]} e4 {[%emt 0:00:07]} 45. fxe4 {[%emt 0:00:13]} fxe4 {[%emt 0:00:03]} 46. Re8+ {[%emt 0:00:06]} Kf5 {[%emt 0:00:11]} 47. Rf8+ {[%emt 0:00:12]} Kg4 {[%emt 0:00:03]} 48. Rd8 {[%emt 0:00:08]} d3 {[%emt 0:00:03]} 49. Ke3 {[%emt 0:00:06]} Ng2+ {[%emt 0:01:24]} 50. Kxe4 {[%emt 0:00:18]} Ne1 {[%emt 0:00:12]} 51. Ke3 {[%emt 0:00:24]} Kh3 {[%emt 0:00:09]} 52. Rh8 {[%emt 0:00:18]} h4 {[%emt 0:00:09]} 53. Kd2 {[%emt 0:00:03]} Nf3+ {[%emt 0:00:02]} 54. Kxd3 {[%emt 0:00:03]} Nxh2 {[%emt 0:00:01]} 55. Ke4 {[%emt 0:00:04]} Kg3 {[%emt 0:00:06]} 56. Rg8+ {[%emt 0:00:02]} Kf2 {[%emt 0:00:07]} 57. Kf4 {[%emt 0:00:09]} h3 {[%emt 0:00:03]} 58. Rh8 {[%emt 0:00:07]} Kg2 {[%emt 0:00:06]} 59. Rh7 {[%emt 0:00:04]} Nf1 {[%emt 0:00:04]} 60. Rg7+ {[%emt 0:00:06]} Kh1 {[%emt 0:00:06]} 61. Kf3 $11 {[%emt 0:00:07]} Kh2 {[%emt 0:00:12]} 62. Kf2 {[%emt 0:00:09]} Nd2 {[%emt 0:00:04]} 63. Ra7 {[%emt 0:00:09]} Ne4+ {[%emt 0:00:02]} 64. Ke3 {[%emt 0:00:06]} Ng3 {[%emt 0:00:06]} 65. Kf3 {[%emt 0:00:12]} Nf1 {[%emt 0:00:06]} 66. Ra2+ {[%emt 0:00:05]} Kg1 {[%emt 0:00:02]} 67. Rb2 {[%emt 0:00:43]} h2 {[%emt 0:00:14]} 68. Rg2+ {[%emt 0:00:06]} Kh1 {[%emt 0:00:02]} 69. Kf2 {[%emt 0:00:20]} 1-0